bitfinex-derivatives/quotes_SOLF0:USTF0_20250830
["timestamp","ask_amount","ask_price","bid_price","bid_amount"]
[1756559270653,0.87743627,198.42,198.29,7.82]
[1756559270850,0.87743627,198.42,198.32,8.28521842]
[1756559271050,0.87,198.58,198.37,7.82]
[1756559271361,0.87,198.58,198.4,7.82]
[1756559271559,8.28521842,198.66,198.34,7.82]
[1756559271560,0.87,198.54,198.34,7.82]
[1756559271761,0.87,198.52,198.34,7.82]
[1756559271956,10.86121946,199.15,197.88,124.0]
[1756559271957,337.76,198.92,198.51,8.28521842]
[1756559272262,8.28521842,198.68,198.53,7.82]
[1756559272456,0.87,198.79,198.54,7.82]
[1756559272757,104.99690376,198.8,198.62,7.82]
[1756559272960,0.87,198.85,198.65,8.28521842]
[1756559273154,0.87,198.85,198.62,173.78]
[1756559273155,0.87,198.85,198.62,16.10521842]
[1756559273356,0.87,198.76,198.55,7.82]
[1756559273860,0.87,198.76,198.57,7.82]
[1756559274257,0.87,198.79,198.57,7.82]
[1756559274457,13.41078707,198.7,198.51,337.76]
[1756559274664,0.87,198.69,198.51,337.76]
[1756559274857,13.41078707,198.7,198.49,7.82]
[1756559275059,13.41078707,198.67,198.49,7.82]
[1756559275758,0.87,198.69,198.49,7.82]
[1756559275959,13.41078707,198.67,198.49,7.82]
[1756559276358,0.87,198.66,198.49,7.82]
[1756559276663,0.87,198.56,198.4,7.82]
[1756559276860,0.87,198.56,198.31,7.82]
[1756559277064,14.28078707,198.56,198.31,7.82]
[1756559277761,14.28078707,198.56,198.34,7.82]
[1756559277966,0.87,198.5,198.34,7.82]
[1756559278463,13.41078707,198.51,198.28,337.96]
[1756559278464,0.87,198.45,198.28,7.82]
[1756559278767,13.41078707,198.46,198.17,7.82]
[1756559278768,0.87,198.4,198.17,7.82]
[1756559279269,12.74,198.44,198.18,7.82]
[1756559279462,0.87,198.43,198.25,7.82]
[1756559279670,13.41078707,198.4,198.25,7.82]
[1756559280163,0.87,198.43,198.25,7.82]
[1756559280363,12.74,198.44,198.25,7.82]
[1756559280568,13.41078707,198.43,198.25,7.82]
[1756559280764,13.41078707,198.43,198.17,7.82]
[1756559280964,13.41078707,198.41,198.17,7.82]
[1756559281159,0.87,198.4,198.17,7.82]
[1756559281364,13.41078707,198.37,198.17,7.82]
[1756559281662,0.87,198.36,198.17,7.82]
[1756559281865,26.15078707,198.44,198.17,7.82]
[1756559282164,0.87,198.38,198.17,7.82]
[1756559282763,13.41078707,198.39,198.17,7.82]
[1756559282967,0.87,198.33,198.17,7.82]
[1756559283676,0.87,198.33,198.02,338.34]
[1756559283872,0.87,198.33,198.1,7.82]
[1756559284070,0.87,198.33,198.12,7.82]
[1756559284467,0.87,198.38,198.16,13.41078707]
[1756559284668,0.87,198.38,198.17,7.82]
[1756559284871,107.75490555,198.43,198.22,7.82]
[1756559285271,107.75490555,198.43,198.2,125.42]
[1756559285272,107.75490555,198.43,198.25,7.82]
[1756559285968,107.75490555,198.43,198.27,7.82]
[1756559286365,121.16569262,198.43,198.18,20.75078707]
[1756559286569,0.87,198.42,198.18,13.41078707]
[1756559286867,0.87,198.42,198.24,7.82]
[1756559288578,107.75490555,198.43,198.28,7.89]
[1756559289078,12.74,198.44,198.33,7.89]
[1756559289282,12.74,198.44,198.38,7.89]
[1756559289469,7.85,198.63,198.43,7.89]
[1756559290076,6.78,198.66,198.43,7.89]
[1756559290077,7.85,198.59,198.43,7.89]
[1756559290580,7.85,198.54,198.36,7.89]
[1756559291178,7.85,198.6,198.39,7.89]
[1756559291471,7.85,198.66,198.48,13.41078707]
[1756559291677,338.62,198.7,198.49,7.89]
[1756559291977,7.85,198.72,198.53,13.41078707]
[1756559292181,7.85,198.8,198.59,7.89]
[1756559292368,21.26078707,198.88,198.65,21.30078707]
[1756559292572,21.26078707,198.88,198.67,13.41078707]
[1756559292867,7.85,198.88,198.69,7.89]
[1756559293078,7.85,198.88,198.76,0.03798314]
[1756559293285,7.85,198.94,198.76,0.03798314]
[1756559293577,7.85,198.94,198.75,7.89]
[1756559293774,13.41078707,198.9,198.75,7.89]
[1756559294171,7.85,198.89,198.83,0.03653785]
[1756559294376,0.03516165,198.84,198.83,0.03653785]
[1756559294579,0.03516165,198.84,198.73,7.89]
[1756559294777,0.87582423,198.87,198.73,7.89]
[1756559294978,7.85,198.86,198.82,0.03467669]
[1756559295181,21.26078707,198.86,198.67,7.89]
[1756559295481,7.85,198.8,198.61,7.89]
[1756559295874,7.85,198.8,198.61,21.30078707]
[1756559296070,21.26078707,198.8,198.61,7.89]
[1756559296282,7.85,198.74,198.54,7.89]
[1756559296776,13.41078707,198.65,198.42,7.89]
[1756559297483,0.03569511,198.55,198.42,7.89]
[1756559297874,7.85,198.62,198.42,7.89]
[1756559298279,139.14,198.79,198.38,170.48]
[1756559298280,7.85,198.68,198.47,7.89]
[1756559298576,7.85,198.74,198.52,7.89]
[1756559298779,13.41078707,198.79,198.57,7.89]
[1756559299687,7.85,198.73,198.66,0.03431399]
[1756559300178,125.82939838,198.8,198.57,13.41078707]
[1756559300379,120.26861131,198.8,198.68,0.03560656]
[1756559300877,120.26861131,198.8,198.63,21.30078707]
[1756559301079,120.26861131,198.8,198.72,0.03764041]
[1756559302582,120.76861131,198.8,198.72,0.03764041]
[1756559302981,120.26861131,198.8,198.72,0.03764041]
[1756559304683,112.41861131,198.8,198.72,0.03764041]
[1756559304882,149.7966113,198.87,198.72,0.03764041]
[1756559305282,149.7966113,198.87,198.68,7.89]
[1756559305582,149.7966113,198.87,198.78,0.03411877]
[1756559305781,168.96,198.86,198.78,0.03411877]
[1756559306685,190.8766113,198.87,198.78,0.03411877]
[1756559306984,22.1366113,198.87,198.78,0.03411877]
[1756559307183,190.7166113,198.87,198.78,0.03411877]
[1756559307683,22.1366113,198.87,198.78,0.03411877]
[1756559307884,177.22582423,198.87,198.78,0.03411877]
[1756559308287,190.6366113,198.87,198.78,0.03411877]
[1756559308487,3.69777005,198.86,198.78,0.03411877]
[1756559308685,190.6366113,198.87,198.78,0.03411877]
[1756559308886,8.72582423,198.87,198.78,0.03411877]
[1756559310286,3.70498284,198.86,198.78,0.03411877]
[1756559310487,3.70819974,198.85,198.78,0.03411877]
[1756559310690,3.70789807,198.84,198.78,0.03411877]
[1756559310883,8.72582423,198.87,198.78,0.03411877]
[1756559311089,7.60802518,198.86,198.78,0.03411877]
[1756559311291,3.70827431,198.85,198.78,0.03411877]
[1756559311494,3.70921135,198.84,198.78,0.03411877]
[1756559311691,176.10582423,198.87,198.78,0.03411877]
[1756559311891,3.71024364,198.86,198.78,0.03411877]
[1756559312093,3.71024364,198.85,198.78,0.03411877]
[1756559312388,8.72582423,198.87,198.78,0.03411877]
[1756559312595,3.71271644,198.86,198.78,0.03411877]
[1756559312791,7.85,198.94,198.78,0.03411877]
[1756559312991,7.61964204,198.93,198.78,0.03411877]
[1756559313187,3.71362829,198.92,198.77,7.89]
[1756559313390,3.71362829,198.91,198.77,7.89]
[1756559313594,7.85,198.94,198.84,0.03644043]
[1756559313890,3.71192507,198.93,198.84,0.03644043]
[1756559314085,7.85,198.94,198.84,0.03644043]
[1756559315394,3.70757231,198.93,198.84,0.03644043]
[1756559315697,3.70757231,198.92,198.84,0.03644043]
[1756559315997,7.85,198.94,198.84,0.03644043]
[1756559316299,3.70764429,198.93,198.84,0.03644043]
[1756559316493,3.70662093,198.92,198.84,0.03644043]
[1756559316688,7.85,198.94,198.84,0.03644043]
[1756559316894,3.70655236,198.93,198.84,0.03644043]
[1756559317098,3.70655236,198.92,198.84,0.03644043]
[1756559317299,173.77,198.94,198.84,0.03644043]
[1756559317491,3.70567986,198.93,198.84,0.03644043]
[1756559317801,3.7052272,198.92,198.84,0.03644043]
[1756559317996,173.77,198.94,198.84,0.03644043]
[1756559318201,3.70511995,198.93,198.84,0.03644043]
[1756559318396,3.70349457,198.92,198.84,0.03644043]
[1756559318596,7.85,198.94,198.84,0.03644043]
[1756559319102,3.70354429,198.93,198.84,0.03644043]
[1756559319302,11.99104501,198.92,198.84,0.03644043]
[1756559319500,8.28877155,198.92,198.84,0.03644043]
[1756559319702,11.80225909,198.91,198.84,0.03644043]
[1756559319896,3.70225909,198.9,198.84,0.03644043]
[1756559320099,8.28877155,198.88,198.84,0.03644043]
[1756559320401,8.1,198.87,198.84,0.03644043]
[1756559320602,8.1,198.87,198.73,8.04]
[1756559320899,137.46,198.93,198.84,0.03446109]
[1756559321202,137.46,198.93,198.78,8.04]
[1756559321406,137.46,198.93,198.87,0.03850598]
[1756559321607,3.69998086,198.92,198.87,0.03850598]
[1756559321803,3.69998086,198.91,198.87,0.03850598]
[1756559322004,8.1,198.89,198.73,8.04]
[1756559322208,8.1,198.85,198.67,8.04]
[1756559322403,8.1,198.81,198.61,346.36]
[1756559322604,16.58,198.8,198.62,8.04]
[1756559322804,8.1,198.81,198.62,8.04]
[1756559323002,8.28877155,198.86,198.65,8.04]
[1756559323202,8.28877155,198.86,198.68,8.28877155]
[1756559323402,8.28877155,198.86,198.69,8.04]
[1756559323603,8.28877155,198.86,198.74,0.03730582]
[1756559324002,8.1,198.87,198.69,8.04]
[1756559324506,8.28877155,198.86,198.76,0.03181247]
[1756559325110,3.70392091,198.85,198.76,0.03181247]
[1756559325310,8.28877155,198.86,198.76,0.03181247]
[1756559325905,3.70478587,198.85,198.76,0.03181247]
[1756559326114,3.70478587,198.84,198.76,0.03181247]
[1756559326309,8.1,198.87,198.76,0.03181247]
[1756559326512,3.70567885,198.86,198.76,0.03181247]
[1756559326708,8.28877155,198.84,198.76,0.03181247]
[1756559327014,3.70567885,198.83,198.76,0.03181247]
[1756559327815,8.1,198.87,198.76,0.03181247]
[1756559328017,167.95418309,198.86,198.76,0.03181247]
[1756559328218,3.71418309,198.85,198.76,0.03181247]
[1756559329214,8.1,198.87,198.76,0.03181247]
[1756559329414,7.58815118,198.86,198.76,0.03181247]
[1756559329615,7.58788317,198.85,198.76,0.03181247]
[1756559329809,3.72938985,198.84,198.76,0.03181247]
[1756559330010,3.72938985,198.83,198.76,0.03181247]
[1756559330210,179.74877155,198.93,198.77,8.04]
[1756559330410,7.42519649,198.92,198.77,8.04]
[1756559330608,3.86530768,198.91,198.77,8.04]
[1756559330817,179.74877155,198.93,198.83,0.03742001]
[1756559331016,3.56478927,198.92,198.83,0.03742001]
[1756559331318,8.1,198.9,198.83,0.03742001]
[1756559331515,3.56476747,198.89,198.83,0.03742001]
[1756559332619,17.26403407,198.97,198.83,0.03742001]
[1756559332620,163.12,198.96,198.83,0.03742001]
[1756559332815,10.57711108,198.95,198.83,0.03742001]
[1756559333016,3.57984349,198.94,198.82,8.04]
[1756559333216,3.57984349,198.93,198.82,8.04]
[1756559333518,3.57984349,198.92,198.87,0.03338667]
[1756559333716,3.57984349,198.91,198.87,0.03338667]
[1756559333913,338.1,199.0,198.88,8.04]
[1756559334119,10.60575728,198.99,198.88,8.04]
[1756559334315,7.23801889,198.98,198.88,8.04]
[1756559334513,3.58961472,198.97,198.92,0.03353049]
[1756559334714,3.58961472,198.96,198.92,0.03353049]
[1756559335011,127.3,199.04,198.93,8.04]
[1756559335317,7.02695816,199.03,198.93,8.04]
[1756559335614,3.37806964,199.02,198.93,8.04]
[1756559335816,3.65033036,199.01,198.96,0.03496274]
[1756559336015,8.1,199.07,198.96,0.03496274]
[1756559336217,7.02955464,199.06,198.96,0.03496274]
[1756559336418,7.02955464,199.05,198.96,0.03496274]
[1756559336616,7.03300064,199.04,198.96,0.03496274]
[1756559336818,7.03300064,199.03,198.96,0.03496274]
[1756559337012,7.03300064,199.02,198.96,0.03496274]
[1756559337223,3.65327474,199.01,198.96,0.03496274]
[1756559337411,8.1,198.99,198.96,0.03496274]
[1756559337612,3.65327474,198.98,198.96,0.03496274]
[1756559337812,161.9,199.03,198.96,0.03496274]
[1756559338011,7.03084962,199.02,198.96,0.03496274]
[1756559338211,7.03084962,199.01,198.96,0.03496274]
[1756559338418,3.64937288,199.0,198.96,0.03496274]
[1756559338618,8.1,198.98,198.96,0.03496274]
[1756559339321,8.1,199.05,198.96,0.03496274]
[1756559339517,8.1,199.03,198.96,0.03496274]
[1756559339829,7.02208579,199.02,198.96,0.03496274]
[1756559340120,7.02208579,199.01,198.96,0.03496274]
[1756559340320,8.1,198.99,198.96,0.03496274]
[1756559340624,161.6,199.06,198.96,0.03496274]
[1756559340625,8.1,199.06,198.96,0.03496274]
[1756559340825,7.02162006,199.05,198.96,0.03496274]
[1756559341024,7.02162006,199.04,198.96,0.03496274]
[1756559341224,3.64637645,199.03,198.96,0.03496274]
[1756559341419,8.1,199.06,198.96,0.03496274]
[1756559341624,3.64440866,199.05,198.96,0.03496274]
[1756559341925,8.1,199.06,198.96,0.03496274]
[1756559342124,3.6440223,199.05,198.96,0.03496274]
[1756559342320,8.1,199.06,198.96,0.03496274]
[1756559343121,7.01926309,199.05,198.96,0.03496274]
[1756559343424,8.1,199.06,198.96,0.03496274]
[1756559344928,3.37539513,199.05,198.96,0.03496274]
[1756559345131,8.1,199.06,198.96,0.03496274]
[1756559345322,3.62962047,199.05,198.96,0.03496274]
[1756559345626,8.1,199.06,198.96,0.03496274]
[1756559346829,168.92339613,199.11,198.96,0.03496274]
[1756559346830,8.1,199.04,198.96,0.03496274]
[1756559347029,15.29230595,199.03,198.96,0.03496274]
[1756559347227,8.28877155,199.03,198.87,8.04]
[1756559347424,8.1,199.04,198.98,0.03323968]
[1756559347830,8.1,199.04,198.92,7.85]
[1756559348029,8.28877155,199.07,198.99,0.03466381]
[1756559348230,14.74432478,199.06,198.99,0.03466381]
[1756559348425,7.74,199.06,198.99,0.03466381]
[1756559348829,8.61462458,199.11,198.99,0.03466381]
[1756559349231,7.74,199.11,198.97,7.85]
[1756559349731,7.74,199.11,199.03,0.03552087]
[1756559350932,7.74,199.09,199.03,0.03552087]
[1756559351330,8.28877155,199.06,199.03,0.03552087]
[1756559351534,7.74,199.05,198.92,7.85]
[1756559352424,7.74,199.05,198.77,7.85]
[1756559352625,7.74,199.01,198.84,7.85]
[1756559352832,0.03602405,198.93,198.84,7.85]
[1756559359241,7.77602405,198.93,198.76,7.85]
[1756559359646,7.74,198.93,198.76,7.85]
[1756559359842,16.02877155,198.91,198.76,7.85]
[1756559360043,0.03814427,198.86,198.76,7.85]
[1756559366841,0.03814427,198.86,198.78,7.85]
[1756559367245,7.74,198.97,198.78,7.85]
[1756559367742,346.12877155,198.98,198.78,7.85]
[1756559367743,0.0376686,198.84,198.78,7.85]
[1756559368046,16.02877155,198.94,198.78,7.85]
[1756559368347,346.12877155,198.98,198.79,0.03664135]
[1756559368546,346.12877155,198.98,198.8,7.85]
[1756559368950,346.12877155,198.98,198.8,16.13877155]
[1756559369142,337.84,198.98,198.81,7.85]
[1756559369340,337.84,198.98,198.83,7.85]
[1756559369544,337.84,198.98,198.87,0.03591977]
[1756559369743,337.84,198.98,198.88,7.85]
[1756559370549,337.84,198.98,198.91,0.03682009]
[1756559372544,11.38046921,198.97,198.91,0.03682009]
[1756559372854,7.74,198.93,198.78,7.85]
[1756559373954,0.03433713,198.87,198.78,7.85]
[1756559381255,0.03433713,198.87,198.73,345.51]
[1756559381458,8.28877155,198.86,198.73,345.51]
[1756559381957,0.03332173,198.81,198.73,345.51]
[1756559385456,5.13627532,198.81,198.73,7.71]
[1756559386066,0.03332173,198.81,198.73,7.71]
[1756559387573,8.08,198.73,198.63,7.71]
[1756559387871,5.10295359,198.65,198.54,7.71]
[1756559388370,5.10295359,198.62,198.54,7.71]
[1756559388570,13.18295359,198.64,198.54,7.71]
[1756559388870,0.03186327,198.6,198.54,7.71]
[1756559389365,0.03186327,198.6,198.46,7.71]
[1756559389570,0.03186327,198.6,198.48,7.71]
[1756559389773,5.10295359,198.61,198.48,7.71]
[1756559389967,8.08,198.64,198.49,7.71]
[1756559390166,0.03294786,198.56,198.49,7.71]
[1756559390668,0.03294786,198.56,198.52,7.71]
[1756559390970,0.03294786,198.56,198.51,7.71]
[1756559391162,0.03294786,198.56,198.5,7.71]
[1756559392365,8.08,198.66,198.53,7.71]
[1756559392564,5.10295359,198.7,198.55,7.71]
[1756559392761,5.10295359,198.7,198.55,5.10295359]
[1756559392969,8.08,198.71,198.56,7.71]
[1756559393174,5.10295359,198.74,198.62,7.71]
[1756559393566,13.18295359,198.77,198.62,7.71]
[1756559393769,8.08,198.73,198.66,0.03724852]
[1756559394172,8.08,198.73,198.62,7.71]
[1756559394579,5.10295359,198.74,198.68,0.034306]
[1756559395672,8.08,198.75,198.68,0.034306]
[1756559396068,8.08,198.78,198.68,0.034306]
[1756559396369,8.08,198.78,198.65,7.71]
[1756559396771,8.08,198.78,198.71,0.03380781]
[1756559397474,5.10295359,198.76,198.71,0.03380781]
[1756559397869,8.08,198.72,198.71,0.03380781]
[1756559398168,8.08,198.72,198.6,7.71]
[1756559399477,0.03425895,198.68,198.6,7.71]
[1756559400570,0.03425895,198.68,198.55,7.71]
[1756559400571,8.11425895,198.68,198.55,7.71]
[1756559401078,8.08,198.68,198.55,7.71]
[1756559401279,0.03752637,198.63,198.55,7.71]
[1756559402178,0.03752637,198.63,198.49,7.71]
[1756559402379,0.03752637,198.63,198.56,7.71]
[1756559402580,5.10295359,198.67,198.56,7.71]
[1756559402972,0.03277734,198.61,198.52,7.71]
[1756559403885,0.03277734,198.61,198.55,7.71]
[1756559404092,13.18295359,198.73,198.58,7.71]
[1756559404383,8.08,198.69,198.56,0.0366534]
[1756559404683,8.08,198.69,198.55,7.71]
[1756559405379,8.08,198.69,198.6,0.03308067]
[1756559405579,5.10295359,198.73,198.6,0.03308067]
[1756559405580,8.08,198.73,198.6,0.03308067]
[1756559405780,8.08,198.73,198.62,7.71]
[1756559406277,5.10295359,198.72,198.66,0.03553665]
[1756559406478,8.08,198.73,198.66,0.03553665]
[1756559406677,8.08,198.73,198.62,12.81295359]
[1756559406873,8.08,198.73,198.62,7.71]
[1756559407075,7.41,198.74,198.68,0.03333942]
[1756559407479,5.10295359,198.72,198.68,0.03333942]
[1756559407786,7.41,198.68,198.57,7.83]
[1756559407985,7.41,198.68,198.53,7.83]
[1756559408984,0.03785585,198.62,198.53,7.83]
[1756559410085,0.03785585,198.62,198.53,12.93295359]
[1756559410384,0.03785585,198.62,198.56,5.10295359]
[1756559410581,0.03785585,198.62,198.6,7.83]
[1756559410785,7.41,198.73,198.6,7.83]
[1756559411080,0.03491715,198.63,198.6,7.83]
[1756559411480,12.51295359,198.73,198.6,7.83]
[1756559411783,0.03179301,198.63,198.55,5.10295359]
[1756559411977,12.51295359,198.73,198.59,7.83]
[1756559412481,0.03650063,198.61,198.58,5.10295359]
[1756559412681,12.51295359,198.73,198.59,7.83]
[1756559413081,0.03260732,198.61,198.59,7.83]
[1756559413280,12.51295359,198.73,198.58,5.10295359]
[1756559413481,12.51295359,198.73,198.59,7.83]
[1756559413680,0.03253019,198.62,198.48,67.10295359]
[1756559413876,0.03253019,198.62,198.57,5.10295359]
[1756559414178,12.51295359,198.73,198.58,7.83]
[1756559414384,12.51295359,198.73,198.6,5.10295359]
[1756559414574,0.0354965,198.67,198.6,5.10295359]
[1756559414979,0.0354965,198.67,198.58,7.83]
[1756559415188,0.0354965,198.67,198.59,5.10295359]
[1756559415380,0.0354965,198.67,198.58,7.83]
[1756559415685,0.0354965,198.67,198.58,12.93295359]
[1756559417186,0.0354965,198.67,198.58,7.83]
[1756559418282,0.0354965,198.67,198.58,12.93295359]
[1756559419078,0.0354965,198.67,198.58,7.83]
[1756559422782,0.0354965,198.67,198.59,7.83]
[1756559423488,0.0354965,198.67,198.61,7.83]
[1756559423883,12.51295359,198.75,198.61,7.83]
[1756559424283,0.03643463,198.66,198.61,7.83]
[1756559424489,12.51295359,198.75,198.61,7.83]
[1756559424793,7.41,198.75,198.62,5.13996624]
[1756559424992,7.41,198.75,198.63,7.83]
[1756559426289,7.41,198.75,198.67,0.0385875]
[1756559427189,5.10295359,198.8,198.68,7.83]
[1756559427383,11.04096347,198.79,198.67,0.0385875]
[1756559427586,7.41,198.79,198.65,7.83]
[1756559427783,3.63113216,198.78,198.65,7.83]
[1756559427985,7.41,198.79,198.71,0.03765889]
[1756559428394,7.41,198.79,198.69,7.83]
[1756559428782,7.41,198.79,198.73,0.03277324]
[1756559428990,7.41,198.76,198.73,0.03277324]
[1756559429184,7.41,198.74,198.73,0.03277324]
[1756559429992,11.04338508,198.74,198.73,0.03277324]
[1756559430188,0.46722676,198.71,198.61,12.93295359]
[1756559430389,7.41,198.74,198.61,12.93295359]
[1756559430588,3.63505371,198.73,198.61,7.83]
[1756559430793,7.41,198.74,198.61,7.83]
[1756559430990,7.41,198.72,198.61,7.83]
[1756559431290,7.41,198.7,198.57,7.83]
[1756559431489,0.03629981,198.68,198.57,7.83]
[1756559431891,12.51295359,198.67,198.51,7.83]
[1756559432199,5.10295359,198.62,198.51,7.83]
[1756559432694,0.03365219,198.58,198.51,7.83]
[1756559433987,0.03365219,198.58,198.46,7.83]
[1756559434195,3.63811584,198.57,198.46,7.83]
[1756559434392,5.10295359,198.56,198.39,5.57243843]
[1756559434588,5.10295359,198.53,198.4,7.83]
[1756559434787,5.13944649,198.53,198.4,7.83]
[1756559434988,5.10295359,198.53,198.4,7.83]
[1756559435390,0.03871515,198.48,198.4,7.83]
[1756559436597,0.03871515,198.48,198.35,343.38295359]
[1756559436795,0.03871515,198.48,198.36,7.83]
[1756559436992,7.41,198.47,198.36,7.83]
[1756559437391,0.03197888,198.44,198.36,7.83]
[1756559437990,0.03197888,198.44,198.18,77.0542678]
[1756559437991,8.09,198.43,198.28,8.05]
[1756559438193,13.19295359,198.43,198.28,8.05]
[1756559438497,5.10295359,198.37,198.28,8.05]
[1756559438702,5.13550063,198.37,198.28,8.05]
[1756559439199,5.13550063,198.37,198.13,7.97630737]
[1756559439200,8.09,198.36,198.21,8.05]
[1756559439400,13.19295359,198.36,198.21,8.05]
[1756559439900,0.03803773,198.3,198.23,5.10295359]
[1756559440097,0.03803773,198.3,198.24,8.05]
[1756559440994,8.09,198.42,198.3,8.05]
[1756559441899,5.10295359,198.41,198.3,8.05]
[1756559442110,5.10295359,198.41,198.26,148.6]
[1756559442398,8.09,198.42,198.34,0.03293105]
[1756559442794,8.09,198.39,198.34,0.03293105]
[1756559442999,23.23,198.33,198.07,5.57243843]
[1756559443195,8.09,198.23,197.98,5.10295359]
[1756559443391,5.10295359,198.11,197.89,8.05]
[1756559443599,8.09,198.1,197.94,8.05]
[1756559443899,0.87831102,198.01,197.81,8.05]
[1756559444096,0.87831102,198.01,197.86,5.10295359]
[1756559444294,0.87831102,198.01,197.87,5.10295359]
[1756559444494,0.87831102,198.01,197.88,8.05]
[1756559444697,0.87831102,198.01,197.93,5.10295359]
[1756559444902,0.87831102,198.01,197.91,13.15295359]
[1756559445095,0.03552843,197.96,197.93,5.10295359]
[1756559445297,0.87831102,198.01,197.94,0.03721995]
[1756559445298,8.09,198.0,197.94,0.03721995]
[1756559445594,0.87831102,198.01,197.94,0.03721995]
[1756559445795,0.87831102,198.01,197.91,8.05]
[1756559445991,8.96831102,198.01,197.85,8.05]
[1756559446198,15.05,197.99,197.56,8.05]
[1756559446496,15.05,197.99,197.62,8.05]
[1756559446497,8.09,197.84,197.62,8.05]
[1756559446702,8.36436448,197.8,197.62,8.05]
[1756559447089,8.36436448,197.8,197.62,187.89]
[1756559447294,8.36436448,197.8,197.62,8.05]
[1756559447494,8.36436448,197.79,197.62,8.05]
[1756559447695,8.09,197.81,197.64,8.05]
[1756559447898,8.36436448,197.86,197.64,8.05]
[1756559448096,8.36436448,197.91,197.71,8.36436448]
[1756559448295,8.36436448,197.86,197.68,8.05]
[1756559448496,8.36436448,197.86,197.79,0.03719538]
[1756559448797,8.09,197.87,197.74,8.05]
[1756559449001,8.36436448,197.9,197.74,8.05]
[1756559449202,8.36436448,197.88,197.74,8.05]
[1756559449702,16.45436448,197.83,197.64,8.05]
[1756559450093,8.36436448,197.88,197.67,8.05]
[1756559450397,8.09,197.87,197.67,8.05]
[1756559450598,8.09,197.87,197.7,8.05]
[1756559451102,8.36436448,197.84,197.7,8.05]
[1756559451295,8.09,197.83,197.6,8.05]
[1756559451805,8.09,197.79,197.6,8.05]
[1756559452199,8.09,197.75,197.6,8.05]
[1756559452501,8.36436448,197.8,197.6,8.05]
[1756559452697,15.62,197.91,197.55,259.86170847]
[1756559452698,8.09,197.81,197.64,8.05]
[1756559452892,8.09,197.81,197.55,259.86170847]
[1756559452893,8.09,197.87,197.68,8.05]
[1756559453289,339.18,197.92,197.72,8.36436448]
[1756559453495,8.09,197.93,197.77,8.05]
[1756559454295,8.09,197.84,197.64,8.36436448]
[1756559454496,8.09,197.84,197.65,8.05]
[1756559456097,8.09,197.84,197.66,8.36436448]
[1756559456402,8.09,197.84,197.67,189.51]
[1756559456593,8.09,197.84,197.67,8.05]
[1756559456798,16.45436448,197.84,197.67,8.05]
[1756559457197,16.45436448,197.84,197.58,339.36]
[1756559457198,8.09,197.79,197.6,8.05]
[1756559457593,8.09,197.79,197.62,8.05]
[1756559458198,8.09,197.79,197.63,8.36436448]
[1756559458396,16.45436448,197.84,197.64,8.05]
[1756559458602,16.45436448,197.84,197.65,180.82]
[1756559458998,16.45436448,197.84,197.64,8.05]
[1756559459502,16.45436448,197.84,197.65,180.6]
[1756559459700,16.45436448,197.84,197.64,8.05]
[1756559460206,8.09,197.84,197.66,8.05]
[1756559460405,8.09,197.84,197.7,8.05]
[1756559461096,8.09,197.9,197.7,8.05]
[1756559461299,8.09,197.9,197.7,188.15]
[1756559461495,8.09,197.9,197.74,8.05]
[1756559462205,8.36436448,198.1,197.69,339.58]
[1756559462206,8.09,197.98,197.78,8.05]
[1756559462406,8.09,197.98,197.81,8.36436448]
[1756559462596,8.09,198.05,197.86,8.05]
[1756559463097,0.03755892,197.97,197.94,0.03677409]
[1756559463301,8.09,197.96,197.8,8.05]
[1756559463700,8.36436448,198.01,197.82,8.05]